Cogmind - Beta 9.3 @@@ ROGUE MODE // 2019.12.30 @ 16:07:04 Player: Trione Result: Destroyed by D-53 Grenadier with Mini Grenade Launcher Performance ------------- Evolutions (0) 0 Regions Visited (2) 400 Robots Destroyed (25) 125 Value Destroyed (422) 422 Prototype IDs (0) 0 Alien Tech Used (0) 0 Bonus (0) 0 TOTAL SCORE: 947 Bonus ------- None Cogmind --------- Core Integrity 0/250 Matter 300/300 Energy 100/100 System Corruption 0% Temperature Cool (0) Movement Rolling (110) Ox1 Location -10/Mines Parts ------- > --- POWER (1) -------- (None) > --- PROPULSION (2) --- Compact Wheel > --- UTILITY (2) ------ Large Storage Unit Large Storage Unit > --- WEAPON (2) ------- (None) > --- INVENTORY (16) --- Light Treads Improved Treads Improved Treads Improved Treads Improved Terrain Scanner EM Pulse Gun EM Pulse Gun Light Assault Rifle Autogun Autogun Plasma Cutter Peak State ------------ > --- POWER ------------ Ion Engine > --- PROPULSION ------- Improved Treads Improved Treads > --- UTILITY ---------- Small Storage Unit Small Storage Unit > --- WEAPON ----------- Autogun Autogun > --- INVENTORY -------- Light Ion Engine Improved Treads Wheel Compact Wheel Improved Terrain Scanner EM Pulse Gun EM Pulse Gun Light Assault Rifle [Rating: 12] Favorites ----------- Power Ion Engine Engine Ion Engine Propulsion Improved Treads Treads Improved Treads Wheel Compact Wheel Utility Large Storage Unit Storage Large Storage Unit Weapon Autogun Energy Gun EM Pulse Gun Ballistic Gun Autogun Build | -11 -10 -10 ------- Run | Scr Mat Min Slots Evolved . | . . . Power . | . . . Propulsion . | . . . Utility . | . . . Weapon . | . . . Parts Attached 18 | 7 11 . Power 2 | 1 1 . Engine 2 | 1 1 . Core . | . . . Reactor . | . . . Propulsion 8 | 2 6 . Treads 4 | 2 2 . Leg . | . . . Wheel 4 | . 4 . Hover . | . . . Flight . | . . . Utility 4 | 2 2 . Device . | . . . Storage 4 | 2 2 . Processor . | . . . Hackware . | . . . Protection . | . . . Artifact . | . . . Weapon 4 | 2 2 . Energy Gun 1 | 1 . . Energy Cannon . | . . . Ballistic Gun 3 | 1 2 . Ballistic Cannon . | . . . Launcher . | . . . Special Weapon . | . . . Impact Weapon . | . . . Slashing Weapon . | . . . Piercing Weapon . | . . . Special Melee Weapon . | . . . Unidentified Prototypes . | . . . Parts Lost 5 | . 1 4 Power 2 | . 1 1 Propulsion 1 | . . 1 Utility . | . . . Weapon 2 | . . 2 Highest Loss Streak 4 | . 1 4 Average Slot Usage (%) 98 | . 100 56 Engine 13 | . 14 4 Treads 17 | . 17 . Wheel 10 | . 10 18 Storage 28 | . 28 28 Energy Gun 4 | . 4 . Ballistic Gun 23 | . 23 4 Naked Turns . | . . . Heaviest Build 43 | 17 43 41 Greatest Support 46 | 40 46 26 Greatest Overweight (x) 4 | 4 1 1 Average Overweight (x) . | . . 1 Largest Inventory Capacity 16 | 8 16 16 Average Capacity 12 | 6 12 16 Most Carried 12 | 7 12 11 Average Carried 8 | 4 9 11 Final Capacity 16 | 8 16 16 Final Carried 11 | 7 11 11 Class Distribution -------------------- 100% | Mutant Dominant Class ---------------- Mutant | -10/Materials Mutant | -10/Mines Resources | -11 -10 -10 ----------- Run | Scr Mat Min Matter Collected 775 | 291 484 . Remotely . | . . . Salvage Created 706 | 136 570 . Parts 54 | 13 41 . Haulers Intercepted 2 | . 2 . Recyclers Shooed 2 | 1 1 . Parts Field Recycled . | . . . Retrieved Matter . | . . . Parts Self-Destructed . | . . . Prevented . | . . . Kills | -11 -10 -10 ------- Run | Scr Mat Min Combat Hostiles Destroyed 10 | . 10 . Guns 9 | . 9 . AOE 1 | . 1 . Classes Destroyed 9 | 2 7 . Worker 1 | . 1 . Builder 2 | . 2 . Tunneler 5 | 3 2 . Hauler 2 | . 2 . Recycler 2 | 1 1 . Operator 1 | . 1 . Watcher 2 | . 2 . Swarmer 6 | . 6 . Grunt 4 | . 4 . Best Kill Streak 5 | 2 5 . Combat Bots Only 5 | . 5 . Max Kills in Single Turn 3 | 1 3 . Gunslinging . | . . . Exploded 1 | . 1 . Melee . | . . . Uniques/NPCs Destroyed . | . . . Combat | -11 -10 -10 -------- Run | Scr Mat Min Damage Taken 933 | . 664 269 Core 282 | . 189 93 Absorbed by Shields . | . . . Core Remaining (%) 100 | 100 . . Volleys Fired 66 | 7 59 . Largest 2 | 2 2 . Hottest 63 | 60 63 . Shots Fired 132 | 14 118 . Gun 132 | 14 118 . Cannon . | . . . Launcher . | . . . Special . | . . . Kinetic 106 | 7 99 . Thermal . | . . . Explosive . | . . . Electromagnetic 26 | 7 19 . Robot Hit Streak 9 | 5 9 . Robot Miss Streak 4 | 1 4 . Penetration Max . | . . . Secondary Targets 2 | . 2 . Max Gunslinging Chain 1 | . 1 . Shots Hit Robots 78 | 9 69 . Core Hits 31 | 5 26 . Critical Hits . | . . . Critical Kills . | . . . Critical Parts Destroyed . | . . . Melee Attacks . | . . . Impact . | . . . Slashing . | . . . Piercing . | . . . Sneak Attacks . | . . . Combat Hostiles . | . . . Follow-up Attacks . | . . . Damage Inflicted 1756 | 124 1632 . Guns 1146 | 124 1022 . Cannons . | . . . Explosions 610 | . 610 . Melee . | . . . Ramming . | . . . Kinetic 918 | 55 863 . Thermal 94 | . 94 . Explosive 516 | . 516 . Electromagnetic 228 | 69 159 . Impact . | . . . Slashing . | . . . Piercing . | . . . Highest Corruption . | . . . Average Corruption . | . . . Corruption Purged . | . . . Overload Shots . | . . . Overflow Damage 32 | . 32 . Projectiles . | . . . Explosions 32 | . 32 . Melee . | . . . Knockbacks . | . . . Impact . | . . . Kinetic . | . . . Secondary . | . . . Self-Inflicted Damage 108 | . 108 . Shots 2 | . 2 . Rammed . | . . . Targets Rammed . | . . . Kicked . | . . . Crushed . | . . . Highest Temperature 54 | . 54 . Average Temperature 13 | . 13 . Received Heat Transfer 134 | . 114 20 Siege Activations . | . . . Robots Corrupted . | . . . Combat Hostiles . | . . . Parts Fried . | . . . Impact Corruptions . | . . . Robots Melted . | . . . Combat Hostiles . | . . . Parts Melted . | . . . Heat Transferred 100 | . 100 . Parts Sabotaged . | . . . Parts Stolen . | . . . Parts Stripped . | . . . Power Chain Reactions 2 | . 2 . Missiles Intercepted . | . . . Alert | -11 -10 -10 ------- Run | Scr Mat Min Peak Influence 323 | 20 323 75 Average Influence 139 | 9 162 42 Maximum Alert Level 1 | . 1 . Low Security (%) 85 | 100 83 100 Level 1 14 | . 16 . Level 2 . | . . . Level 3 . | . . . Level 4 . | . . . Level 5 . | . . . High Security . | . . . Max Security . | . . . Squads Dispatched . | . . . Investigation . | . . . Extermination . | . . . Reinforcement . | . . . Assault . | . . . Garrison . | . . . Intercept . | . . . Construction Impeded . | . . . Haulers Reinforced . | . . . Stealth | -11 -10 -10 --------- Run | Scr Mat Min Distress Signals . | . . . Communications Jammed . | . . . Distress Signals . | . . . Times Spotted 36 | . 17 19 Peak Tracking Total 19 | . 3 19 Tactical Retreats . | . . . Traps | -11 -10 -10 ------- Run | Scr Mat Min Traps Triggered . | . . . Indirectly . | . . . Trap Hack Attempts . | . . . Triggered . | . . . Disarmed . | . . . Reprogrammed . | . . . Reused . | . . . Traps Extracted . | . . . Installed . | . . . Triggered . | . . . Machines | -11 -10 -10 ---------- Run | Scr Mat Min Machines Disabled 9 | . 9 . Max in Single Turn 3 | . 3 . Machines Sabotaged . | . . . Garrisons Compromised . | . . . Overloaded Fab Kills . | . . . Fab Network Shutdowns . | . . . Hacking | -11 -10 -10 --------- Run | Scr Mat Min Machines Accessed 9 | . 9 . Terminals 7 | . 7 . Fabricators . | . . . Repair Stations . | . . . Recycling Units 2 | . 2 . Scanalyzers . | . . . Garrison Access . | . . . Total Hacks 23 | . 23 . Successful 15 | . 15 . Failed 8 | . 8 . Catastrophic 1 | . 1 . Database Lockouts . | . . . Manual 21 | . 21 . Terminals 21 | . 21 . Fabricators . | . . . Repair Stations . | . . . Recycling Units 2 | . 2 . Scanalyzers . | . . . Garrison Access . | . . . Terminal Hacks 5 | . 5 . Part Schematic 2 | . 2 . Terminal Index 1 | . 1 . Zone Layout 2 | . 2 . Fabricator Hacks . | . . . Repair Station Hacks . | . . . Recycling Unit Hacks 2 | . 2 . Retrieve Components 2 | . 2 . Scanalyzer . | . . . Garrison Access Hacks . | . . . Unauthorized Hacks 17 | . 17 . Terminals 8 | . 8 . Track 5 | . 5 . Assimilate 1 | . 1 . Botnet 2 | . 2 . Fabricators . | . . . Repair Stations . | . . . Recycling Units . | . . . Scanalyzers . | . . . Garrison Access . | . . . Data Cores Recovered . | . . . Used . | . . . Hacking Detections 6 | . 6 . Full Trace Events . | . . . Feedback Events . | . . . Feedback Blocked . | . . . Robot Schematics Acquired . | . . . Robots Built . | . . . Matter . | . . . Time . | . . . Total Robot Build Rating . | . . . Part Schematics Acquired 2 | . 2 . Parts Built . | . . . Matter . | . . . Time . | . . . Total Part Build Rating . | . . . Parts Repaired . | . . . Time . | . . . Parts Recycled . | . . . Recycled Matter . | . . . Retrieved Matter . | . . . Retrieved Components 11 | . 11 . Parts Scanalyzed . | . . . Part Schematics Acquired . | . . . Parts Damaged . | . . . Bothacking | -11 -10 -10 ------------ Run | Scr Mat Min Used RIF Installer . | . . . Robots Hacked . | . . . Non-combat . | . . . Combat . | . . . Robot Hacks Applied . | . . . Relay Couplers Released . | . . . Robots Rewired . | . . . Allies Hacked . | . . . Hacks Repelled . | . . . Allies | -11 -10 -10 -------- Run | Scr Mat Min Total Allies 1 | . 1 . Largest Group 1 | . 1 1 Highest-Rated Group 10 | . 10 10 Highest-Rated Ally 10 | . 10 10 Total Orders . | . . . Ally Attacks . | . . . Total Damage . | . . . Kills . | . . . Allies Corrupted . | . . . Allies Melted . | . . . Intel | -11 -10 -10 ------- Run | Scr Mat Min Robot Analysis Total . | . . . Derelict Logs Recovered . | . . . Drone Launches . | . . . Drone Recoveries . | . . . Exploration | -11 -10 -10 ------------- Run | Scr Mat Min Turns Passed 1229 | 162 1042 25 Spaces Moved 776 | 84 668 24 Core 31 | 31 . . Treads 371 | 53 318 . Legs . | . . . Wheels 374 | . 350 24 Hover . | . . . Flight . | . . . Fastest Speed 50 | 50 90 100 Average Speed 127 | 148 126 104 Slowest Speed 250 | 250 160 110 Overloaded Moves . | . . . Propulsion Burnouts . | . . . Robots Hopped . | . . . Cave-ins Triggered . | . . . Exploration Rate (%) 35 | 5 91 9 Regions Visited 2 Branch Regions 1 Pre-discovered Areas . | . . . Known Exits Taken . | . . . Unknown Exits Taken 2 | 1 1 . Scrap Searched . | . . . Spaces Dug . | . . . Terrain Destroyed 45 | . 45 . Melee . | . . . Projectile . | . . . AOE 45 | . 45 . Actions | -11 -10 -10 --------- Run | Scr Mat Min Total 893 | 104 765 24 Wait 6 | . 6 . Move 774 | 83 667 24 Hop . | . . . Pick Up 19 | 7 12 . Fast Attach 8 | 7 1 . Attach 1 | . 1 . Detach . | . . . Swap 9 | . 9 . Drop 10 | . 10 . Fire 66 | 7 59 . Melee . | . . . Ram . | . . . Kick . | . . . Crush . | . . . Escape Stasis . | . . . Rewire . | . . . Trap . | . . . Miscellaneous . | . . . Route ------- -11/Scrapyard -10/Materials (discovered 4 exits: [*Mat x3] / [*Min]) -10/Mines History --------- Turn | Location | Event 3 | -11/Scrapyard | Discovered new exit (range 15) 163 | -11/Scrapyard | Entered Materials 330 | -10/Materials | Discovered new exit (range 15) 340 | -10/Materials | Build established: Mutant 566 | -10/Materials | Discovered new exit (range 6) 673 | -10/Materials | Core integrity fell below 50% 973 | -10/Materials | Discovered new exit (range 8) 1051 | -10/Materials | Discovered new exit (range 10) 1205 | -10/Materials | Entered Mines 1205 | -10/Mines | Accompanied by 1 ally 1206 | -10/Mines | Assembled infested the area 1218 | -10/Mines | Core integrity fell below 20% 1230 | -10/Mines | Destroyed by D-53 Grenadier with Mini Grenade Launcher Last Messages --------------- 01216_ as-32830 destroyed. 01219_ The unstable cave ceiling collapses. 01219_ as-45784 destroyed. 01219_ as-77033 destroyed. 01219_ Wheel destroyed. 01221_ as-40352 destroyed. 01221_ as-08558 destroyed. 01221_ as-98656 destroyed. 01221_ as-39099 destroyed. 01221_ as-30481 destroyed. 01223_ as-94008 destroyed. 01223_ as-55681 destroyed. 01223_ as-70610 destroyed. 01223_ as-53321 destroyed. 01225_ as-14227 destroyed. 01226_ as-63815 destroyed. 01227_ The unstable cave ceiling collapses. 01227_ U-05 Engineer builds a Wall. 01229_ The unstable cave ceiling collapses. 01230_ as-71110 destroyed. Map ----- +----------------------------------------------------+ | ??????????????????????????????????????????????? | | ??????????????????????????????????????????????? | | ??????????????????????????????????????????????? | | ??????????????????????????????????????????????? | | ??????????????????????????????????????????????? | | ??????????????????????????????????????????????? | | ??????????????????????????????????????????????? | | ??????????????????????????????????????????????? | | ??????????????????????????????????????????????? | | ??????????????????????????????????####????????? | | ?????????????????????????????????? " #????????? | | ??????????????????????????? ? ????#%"#????????? | | ??????????????????????????? ???#" #????????? | | ???????????????????????????? ???# ##???????? | | ???????????????????????????? ## ????????? | | ????????????????????????????? # ????????? | | ????????????????????????????? # # #???????? | | ????????????????????????????? # #??????? | | ?????????????????????###????## ??????? | | ?????????????????????# ##### dd #??????? | | ?????????????????????# # ##?????? | | ?????????????????????# #?????? | | ??????????? ???????# #?????? | | ??????????# ##### % ##?????? | | ??????????# ##??????? | | ???????????# < @ # ###???????? | | ?????????????????######### ##??????????? | | ?????????????????????????# ##???????????? | | ?????????????????????????## ##????????????? | | ??????????????????????????#######?????????????? | | ??????????????????????????????????????????????? | | ??????????????????????????????????????????????? | | ??????????????????????????????????????????????? | | | | | | | | | | | | | | | | | | | | | | | | | | | | | | | | | | | +----------------------------------------------------+ Best States ------------- Heat Dissipation 25 Energy Generation 10 Energy Capacity 250 Matter Stores 300 Matter Capacity 300 Sight Range 16 Terrain Scan Density 10 Evasion (%) 50 Recoil Reduction 2 Item Schematics ----------------- Hcp. Storage Unit | -10/Materials | Hacked Lrg. Storage Unit | -10/Materials | Hacked Robot Schematics ------------------ None Fabricated ------------ Nothing Alien Tech Used ----------------- None Achievements -------------- None Challenges ------------ None Game ------ Seed ImpulseBattleLaser Manual? 0 Play Time 00:09:28 Cumulative 872.5 hours Start 2019.12.30 @ 15:58:17 End 2019.12.30 @ 16:07:04 Sessions 1 Manual Loads 0 Difficulty Rogue Special Mode None Game No. 342 Rogue 342 Adventurer 0 Explorer 0 Win Type - Total 21 Types 11/1/7/0/0/0/2 Lore% 95 Gallery% 96 Achievement% 81 Wizard Run 0 Options --------- ASCII 0 Keyboard 0 Movement Vi Keybinds 0 Fullscreen 0 Font 12/Crisp Map View 76x50 Tactical HUD 1 Map Filters NONE Filters NONE Steam X RUN: 008826f6-b2d2-4a1a-a54c-76e3c64ef398